bitfinex/quotes_ETHUSD_20250813
["timestamp","ask_amount","ask_price","bid_price","bid_amount"]
[1755102174683,0.00424747,4713.4,4713.3,4.32312318]
[1755102175865,0.00424747,4713.4,4713.3,0.63012318]
[1755102176172,0.00424747,4713.4,4713.3,4.31712318]
[1755102176378,0.00424747,4713.4,4713.3,3.87882318]
[1755102176754,0.00424747,4713.4,4713.3,0.19182318]
[1755102176958,0.00424747,4713.4,4713.3,3.87482318]
[1755102177336,0.00424747,4713.4,4713.3,3.87282318]
[1755102177537,0.00424747,4713.4,4713.3,0.19182318]
[1755102177738,0.00424747,4713.4,4713.3,8.95782318]
[1755102178043,0.55424747,4713.4,4713.3,8.95782318]
[1755102178250,3.01934747,4713.4,4713.3,8.765]
[1755102178456,3.01934747,4713.4,4713.3,5.085]
[1755102178984,3.01934747,4713.4,4713.3,8.764]
[1755102179539,3.01934747,4713.4,4713.3,8.763]
[1755102179763,0.55424747,4713.4,4713.3,8.8694]
[1755102180264,2.85694747,4713.4,4713.3,8.8664]
[1755102180456,3.30094747,4713.4,4713.3,8.8664]
[1755102180864,3.30094747,4713.4,4713.3,5.1914]
[1755102181471,3.30094747,4713.4,4713.3,8.8614]
[1755102182044,3.30094747,4713.4,4713.3,5.1914]
[1755102182241,2.85694747,4713.4,4713.3,8.8594]
[1755102182876,0.00424747,4713.4,4713.3,8.8594]
[1755102183084,0.00424747,4713.4,4713.3,9.49513061]
[1755102183288,0.00424747,4713.4,4713.3,10.77483061]
[1755102183484,0.00424747,4713.4,4713.3,7.10683061]
[1755102183639,0.00424747,4713.4,4713.3,5.1914]
[1755102183841,0.00424747,4713.4,4713.3,9.49706424]
[1755102184361,0.00424747,4713.4,4713.3,5.82706424]
[1755102184674,0.00424747,4713.4,4713.3,9.49706424]
[1755102184837,0.00424747,4713.4,4713.3,5.82706424]
[1755102185041,0.00424747,4713.4,4713.3,9.49606424]
[1755102185243,0.00424747,4713.4,4713.3,5.82706424]
[1755102185442,0.00424747,4713.4,4713.3,5.38306424]
[1755102185666,0.00424747,4713.4,4713.3,9.05106424]
[1755102185866,0.00424747,4713.4,4713.3,9.05006424]
[1755102187081,0.00424747,4713.4,4713.3,5.38306424]
[1755102187382,0.00424747,4713.4,4713.3,9.04606424]
[1755102187587,0.00424747,4713.4,4713.3,9.38366424]
[1755102188146,0.00424747,4713.4,4713.3,11.39933412]
[1755102188481,0.00424747,4713.4,4713.3,11.3993784]
[1755102188651,0.00424747,4713.4,4713.3,10.66340852]
[1755102189645,0.04650888,4715.4,4713.3,10.48180877]
[1755102189854,0.084728,4714.8,4713.7,0.73639445]
[1755102190146,0.002,4714.9,4713.9,0.73639445]
[1755102190351,0.002,4714.9,4713.8,4.29570852]
[1755102190352,0.002,4714.9,4714.1,0.73639445]
[1755102190552,0.002,4714.9,4714.2,4.58810297]
[1755102190757,0.002,4714.9,4714.3,0.19170852]
[1755102190969,0.002,4714.9,4714.4,4.58710297]
[1755102191182,0.002,4714.9,4714.5,0.19170852]
[1755102191382,0.002,4714.9,4714.6,3.84961359]
[1755102191600,0.002,4714.9,4714.7,0.19161359]
[1755102191801,0.002,4714.9,4714.8,3.84861359]
[1755102191961,0.002,4714.9,4714.8,4.29250877]
[1755102192856,0.002,4714.9,4714.8,0.63550877]
[1755102193170,0.002,4714.9,4714.8,5.57120877]
[1755102193366,0.002,4714.9,4714.8,4.28550877]
[1755102193689,0.002,4714.9,4714.8,5.56520877]
[1755102193891,0.02,4715.4,4714.8,5.56520877]
[1755102194122,0.02,4715.4,4715.3,18.19268037]
[1755102194323,0.02,4715.4,4715.3,22.03318914]
[1755102194507,0.02,4715.4,4715.3,20.10788914]
[1755102194814,0.02,4715.4,4715.3,5.56420877]
[1755102195405,0.02,4715.4,4715.3,23.75688914]
[1755102196137,0.003,4716.1,4715.3,23.75688914]
[1755102196291,0.003,4716.1,4716.0,19.29200066]
[1755102196490,0.023,4716.4,4716.0,25.02818914]
[1755102196705,0.006,4718.1,4716.1,4.91520877]
[1755102197023,0.006,4718.1,4717.2,0.73233098]
[1755102197197,2.3027,4717.8,4717.3,0.19150877]
[1755102197405,0.444,4717.8,4717.3,3.647]
[1755102197603,1.014,4717.4,4717.3,0.1056]
[1755102197987,3.3167,4717.4,4717.3,3.7526]
[1755102198213,3.3167,4717.4,4717.3,0.1056]
[1755102198593,3.3167,4717.4,4717.3,3.7506]
[1755102198818,0.02,4717.4,4717.3,3.7506]
[1755102199028,0.02,4717.4,4717.3,3.94132626]
[1755102199211,0.02,4717.4,4717.3,0.29632626]
[1755102199387,0.02,4717.4,4717.3,3.94232626]
[1755102200142,0.02,4717.4,4715.8,0.444]
[1755102200143,0.55,4717.3,4715.8,0.444]
[1755102200422,0.55,4717.3,4714.8,19.65728487]
[1755102200423,0.55,4717.1,4715.9,0.19073068]
[1755102200734,0.55,4716.9,4714.6,0.444]
[1755102200889,2.77320101,4716.8,4714.7,0.19081094]
[1755102201093,0.994,4716.7,4714.8,3.8348041]
[1755102201336,0.55,4716.5,4714.9,3.8348041]
[1755102201493,0.02650326,4716.4,4715.0,5.082]
[1755102201824,3.55,4716.3,4715.1,3.643]
[1755102202032,3.55,4716.3,4715.0,5.082]
[1755102202033,0.55,4716.1,4715.0,5.082]
[1755102202201,3.55,4715.9,4715.0,5.082]
[1755102202388,3.55,4715.9,4714.2,2.642]
[1755102202389,3.55,4715.7,4715.1,5.082]
[1755102202589,3.55,4715.5,4715.1,5.082]
[1755102202797,0.02650888,4715.4,4713.1,0.02]
[1755102202996,3.55,4715.2,4713.1,0.02]
[1755102203197,3.55,4715.0,4713.1,0.02]
[1755102203419,0.02651169,4714.9,4713.1,0.02]
[1755102203617,0.55,4714.7,4714.2,3.64]
[1755102203839,2.7467,4714.8,4713.1,0.02]
[1755102203840,3.55,4714.5,4713.1,0.02]
[1755102204043,0.0265145,4714.4,4713.1,0.02]
[1755102204351,3.55,4714.2,4713.1,0.02]
[1755102204493,2.77321619,4714.1,4713.1,0.02]
[1755102204692,3.55,4714.0,4713.1,0.02]
[1755102204941,0.02651732,4713.9,4713.1,0.02]
[1755102205109,3.55,4713.7,4713.2,3.635]
[1755102205432,3.55,4713.5,4713.2,3.635]
[1755102205603,3.55,4713.3,4713.1,0.02]
[1755102205925,3.55,4713.3,4712.1,0.02]
[1755102205926,0.02652125,4713.2,4712.1,0.02]
[1755102206129,3.55,4713.0,4712.1,0.02]
[1755102206428,0.55,4712.8,4712.1,0.02]
[1755102206726,0.02652407,4712.7,4712.1,0.02]
[1755102206913,3.0,4712.5,4712.1,0.02]
[1755102207114,0.57652576,4712.4,4712.2,3.633]
[1755102207330,3.55,4712.3,4712.2,3.633]
[1755102207506,3.2967,4712.3,4712.2,3.633]
[1755102207903,2.8527,4712.3,4712.2,3.633]
[1755102208105,2.3027,4713.1,4712.2,3.633]
[1755102208530,0.15952113,4713.2,4712.2,4.077]
[1755102208731,0.02651788,4713.8,4712.2,4.077]
[1755102209035,2.3027,4714.8,4712.3,0.444]
[1755102209241,0.02651282,4714.7,4712.3,0.444]
[1755102209601,2.3027,4714.8,4712.4,1.2997]
[1755102210011,2.3855,4715.4,4714.7,0.1064]
[1755102210341,2.3855,4715.4,4712.4,1.2997]
[1755102210342,2.3855,4715.4,4715.3,0.1064]
[1755102210628,2.8377,4715.4,4715.3,0.1064]
[1755102211552,5.8377,4715.4,4715.3,5.1904]
[1755102211714,5.8377,4715.4,4715.3,5.084]
[1755102211715,2.3855,4715.4,4715.3,5.084]
[1755102211911,2.3855,4715.4,4715.3,5.1904]
[1755102213021,2.9355,4715.4,4715.3,5.1904]
[1755102213219,2.9355,4715.4,4713.9,0.1064]
[1755102213220,3.55,4715.3,4713.9,0.1064]
[1755102213418,3.55,4714.0,4712.6,5.084]
[1755102213618,0.55,4713.8,4712.6,5.084]
[1755102213944,0.55,4713.6,4712.7,3.639]
[1755102214099,3.55,4713.4,4712.7,3.639]
[1755102214302,3.55,4713.4,4712.8,3.64]
[1755102214303,3.55,4713.2,4712.8,3.64]
[1755102214612,3.55,4713.0,4712.8,3.64]
[1755102214802,0.55,4713.0,4712.8,3.64]
[1755102215002,6.3677,4712.9,4712.8,3.64]
[1755102215439,6.3677,4712.9,4711.8,0.001]
[1755102215440,0.55,4712.8,4711.8,0.001]
[1755102215760,0.02652407,4712.7,4712.4,8.721]
[1755102215910,0.02652351,4712.8,4712.4,8.721]
[1755102216230,0.02652351,4712.8,4712.4,5.084]
[1755102216231,3.55,4712.5,4712.4,5.084]
[1755102216430,3.3677,4712.5,4712.4,8.719]
[1755102217215,2.9155,4712.5,4712.4,5.084]
[1755102217542,0.55,4712.5,4712.4,8.715]
[1755102218310,2.9155,4712.5,4712.4,8.715]
[1755102219429,6.3677,4712.5,4712.4,5.084]
[1755102219638,6.3677,4712.5,4712.4,8.713]
[1755102219840,6.3677,4712.5,4712.4,5.084]
[1755102220039,6.3677,4712.5,4712.4,8.707]
[1755102221117,3.0,4712.5,4712.4,8.707]
[1755102221307,5.8177,4712.5,4712.4,8.707]
[1755102221507,6.3677,4712.5,4712.4,8.707]
[1755102221708,2.3655,4713.0,4712.4,8.707]
[1755102222021,3.47872294,4712.9,4712.1,5.105]
[1755102222234,0.55,4712.8,4712.1,5.105]
[1755102222437,0.02652407,4712.7,4712.1,5.105]
[1755102222639,0.4522,4714.1,4712.4,0.4643]
[1755102222955,0.026519,4713.6,4712.4,0.4643]
[1755102223353,0.026519,4713.6,4713.5,0.1064]
[1755102223560,0.026519,4713.6,4713.5,3.7324]
[1755102223712,0.02651732,4713.9,4713.5,3.7324]
[1755102223913,2.39201732,4713.9,4713.5,3.7324]
[1755102224121,0.55,4713.7,4713.5,3.7324]
[1755102224336,0.02651732,4713.9,4713.5,3.7324]
[1755102224337,0.55,4713.6,4713.5,3.7324]
[1755102225249,0.1064,4714.6,4713.5,3.7324]
[1755102225451,0.4522,4714.8,4713.5,4.1967]
[1755102225452,0.02651394,4714.5,4713.5,4.1967]
[1755102225648,0.02651394,4714.5,4713.5,4.0903]
[1755102225853,2.3655,4714.9,4714.1,0.1064]
[1755102226154,0.4522,4715.3,4714.4,0.1064]
[1755102226155,0.635701,4714.5,4714.4,0.1064]
[1755102226446,0.1064,4715.0,4714.4,5.1924]
[1755102226447,0.13291113,4715.0,4714.4,5.1924]
[1755102226649,0.76856713,4715.0,4714.4,5.1924]
[1755102227242,0.55,4714.9,4714.4,5.1924]
[1755102227554,0.55,4714.7,4714.4,5.1924]
[1755102227760,0.55,4714.5,4714.4,5.1924]
[1755102227929,3.3677,4714.5,4714.4,5.086]
[1755102228255,0.55,4714.3,4713.7,5.086]
[1755102228455,0.02651563,4714.2,4713.7,5.086]
[1755102228620,3.55,4714.1,4712.3,0.001]
[1755102228819,0.55,4713.7,4712.4,5.086]
[1755102229045,3.55,4713.5,4712.4,5.086]
[1755102229232,3.55,4713.3,4712.4,5.086]
[1755102229437,0.02652125,4713.2,4712.5,3.61]
[1755102229635,0.02652125,4713.2,4712.4,5.086]
[1755102229955,0.02652125,4713.2,4712.5,3.61]
[1755102230348,0.02652125,4713.2,4712.4,5.086]
[1755102230553,3.55,4713.0,4712.6,3.607]
[1755102230851,0.55,4712.8,4712.6,3.607]
[1755102231054,0.55,4712.8,4712.7,3.606]
[1755102231635,0.02652294,4712.9,4712.6,5.086]
[1755102231842,0.47872351,4712.8,4712.6,5.086]
[1755102232038,0.55,4712.7,4712.6,5.086]
[1755102232347,3.3677,4712.7,4712.2,5.086]
[1755102232522,3.55,4712.5,4712.2,5.086]
[1755102232722,3.55,4712.3,4712.2,5.086]
[1755102232926,3.3677,4712.3,4712.1,0.0133]
[1755102233122,6.39422688,4712.2,4712.1,0.0133]
[1755102233361,6.3677,4712.2,4712.1,3.6153]
[1755102233679,6.3677,4712.2,4711.6,0.001]
[1755102233680,0.55,4712.1,4711.6,0.001]
[1755102233971,0.55,4711.9,4711.7,3.158]
[1755102234127,0.02652913,4711.8,4711.7,3.158]
[1755102234328,3.39422913,4711.8,4711.7,3.158]
[1755102234564,6.39422913,4711.8,4711.7,3.158]
[1755102234751,6.3677,4711.8,4711.7,3.158]
[1755102235163,7.003831,4711.8,4711.7,3.158]
[1755102235853,0.55,4711.7,4711.6,0.001]
[1755102236067,2.9420297,4711.7,4711.6,3.601]
[1755102237639,0.55,4711.7,4711.6,3.601]
[1755102238631,5.9155,4711.7,4711.6,3.601]
[1755102238831,6.4741,4711.7,4711.6,3.601]
[1755102239872,3.0,4711.7,4711.6,3.601]
[1755102240076,3.55,4711.7,4711.6,3.601]
[1755102240275,6.0633297,4711.7,4711.6,3.581]
[1755102240479,6.4736,4711.7,4711.6,3.581]
[1755102240689,6.4736,4711.7,4711.6,0.001]
[1755102240852,3.55,4711.6,4711.1,5.107]
[1755102241055,0.02653082,4711.5,4711.0,0.001]
[1755102241285,3.55,4711.4,4711.0,0.001]
[1755102241586,0.02653195,4711.3,4711.0,0.001]
[1755102241751,3.55,4711.2,4711.0,0.001]
[1755102241953,0.02653308,4711.1,4711.0,0.001]
[1755102242181,8.62277959,4711.1,4711.0,0.001]
[1755102242382,8.59624651,4711.1,4711.0,3.578]
[1755102242572,21.74268037,4711.0,4710.2,5.087]
[1755102242909,3.55,4710.8,4710.2,5.087]
[1755102243189,3.55,4710.6,4710.2,5.087]
[1755102243362,3.0,4710.4,4710.2,5.087]
[1755102243682,2.4868,4710.3,4710.2,5.087]
[1755102243897,3.55,4710.2,4709.9,0.001]
[1755102244100,0.02653871,4710.1,4710.0,3.574]
[1755102244308,3.55,4710.0,4709.9,0.001]
[1755102244456,3.55,4710.0,4708.2,5.088]
[1755102244659,21.74268037,4709.6,4707.6,5.088]
[1755102245065,24.66628037,4709.6,4707.6,5.088]
[1755102245267,3.55,4709.5,4707.6,5.088]
[1755102245492,3.55,4708.4,4707.6,5.088]
[1755102245657,0.02654886,4708.3,4707.6,5.088]
[1755102245858,0.55,4708.1,4707.6,5.088]
[1755102246176,0.55,4708.2,4707.7,4.0444]
[1755102246578,0.02654998,4708.1,4707.8,0.4714]
[1755102246958,0.63664,4708.3,4707.9,0.4714]
[1755102247161,0.15858354,4709.1,4708.0,1.4061]
[1755102247363,0.15858354,4709.1,4708.1,0.4714]
[1755102247562,0.636396,4709.5,4708.1,0.4714]
[1755102247774,0.02654265,4709.4,4708.2,4.8265]
[1755102247993,0.02653646,4710.5,4708.3,1.7189]
[1755102248199,0.63635,4709.8,4708.4,4.0494]
[1755102248398,0.02654096,4709.7,4708.5,3.578]
[1755102248572,0.57654096,4709.7,4707.8,0.4714]
[1755102248771,0.55,4709.5,4707.9,3.579]
[1755102248997,3.55,4709.3,4707.9,3.579]
[1755102249201,2.51334378,4709.2,4707.9,3.579]
[1755102249502,0.02654435,4709.1,4707.9,3.579]
[1755102249798,0.55,4708.8,4708.2,0.1064]
[1755102250009,0.55,4708.8,4708.7,0.1064]
[1755102250010,0.02654604,4708.8,4708.7,0.1064]
[1755102250191,0.02654322,4709.3,4708.7,3.6884]
[1755102250365,0.1064,4709.4,4708.7,4.1598]
[1755102250566,0.13294265,4709.4,4708.8,0.4714]
[1755102250803,0.02654096,4709.7,4708.8,0.4714]
[1755102251111,0.02654096,4709.7,4709.3,0.1064]
[1755102251402,0.02654096,4709.7,4709.6,0.1064]
[1755102251608,0.55,4709.5,4708.9,0.1064]
[1755102251782,0.02654265,4709.4,4709.0,3.58]
[1755102252105,0.57654209,4709.5,4708.9,0.1064]
[1755102252713,0.57654209,4709.5,4708.1,0.4714]
[1755102252876,0.55,4708.4,4707.8,0.1064]
[1755102253077,0.55,4708.4,4707.9,3.578]
[1755102253078,0.02654886,4708.3,4707.9,3.578]
[1755102253280,0.55,4708.0,4707.9,4.0494]
[1755102253478,0.55,4708.0,4707.9,4.1558]
[1755102253680,0.55,4708.0,4707.9,3.6844]
[1755102254307,0.55,4708.0,4707.9,4.1558]
[1755102254506,0.55,4708.0,4707.9,4.0494]
[1755102254707,0.1064,4709.1,4707.9,4.1558]
[1755102254922,0.02654491,4709.0,4708.7,0.1064]
[1755102255213,2.64911597,4710.6,4708.8,4.0484]
[1755102255370,0.02654209,4709.5,4709.4,0.1064]
[1755102255784,0.02653927,4710.0,4709.4,0.1064]
[1755102256108,0.02653984,4709.9,4709.5,3.575]
[1755102256280,0.02653984,4709.9,4709.6,3.577]
[1755102256488,0.02653984,4709.9,4709.6,8.667]
[1755102256830,0.6564,4709.7,4709.6,5.09]
[1755102256997,3.16974096,4709.7,4709.6,8.665]
[1755102257373,0.1064,4709.7,4709.6,8.665]
[1755102257579,3.636321,4710.3,4709.6,8.665]
[1755102257580,0.1064,4710.0,4709.6,8.665]
[1755102257812,0.02653984,4709.9,4709.6,5.09]
[1755102257969,0.55,4709.6,4708.6,5.09]
[1755102258302,3.1064,4709.7,4708.7,3.575]
[1755102258303,0.55,4708.9,4708.7,3.575]
[1755102258484,0.55,4709.2,4708.7,4.1528]
[1755102258680,0.57654378,4709.2,4708.8,8.665]
[1755102258872,0.02654153,4709.6,4708.8,9.1364]
[1755102259073,0.02654322,4709.3,4708.8,9.1364]
[1755102259273,0.1064,4710.1,4709.4,0.1064]
[1755102259470,0.02653927,4710.0,4709.5,3.573]
[1755102259892,0.02653815,4710.2,4709.6,0.4714]
[1755102260074,0.02653815,4710.2,4709.8,0.1064]
[1755102260285,0.57653815,4710.2,4709.8,0.1064]
[1755102260904,0.02653815,4710.2,4709.8,0.1064]
[1755102261093,0.02653815,4710.2,4709.5,3.573]
[1755102261094,0.57653815,4710.2,4709.5,3.573]
[1755102261403,0.68293815,4710.2,4709.6,0.1064]
[1755102261574,0.55,4709.8,4709.7,3.574]
[1755102262297,0.55,4709.6,4709.2,0.1064]
[1755102262496,0.02654209,4709.5,4709.3,3.57]
[1755102263008,6.1432,4709.4,4709.3,3.57]
[1755102264297,3.6564,4709.4,4709.3,3.57]
[1755102264979,3.55,4709.4,4709.3,3.57]
[1755102265475,3.0,4709.4,4709.3,4.0414]
[1755102265675,3.0,4709.4,4709.3,3.57]
[1755102266204,0.55,4709.2,4709.1,0.1064]
[1755102266411,0.55,4709.7,4709.1,3.6674]
[1755102266715,0.1064,4709.4,4709.2,3.558]
[1755102266879,0.55,4709.3,4709.2,3.558]
[1755102267210,0.02654265,4709.4,4709.2,3.558]
[1755102267381,6.0368,4709.3,4709.2,3.558]
[1755102267791,6.673256,4709.3,4709.2,3.558]
[1755102268307,7.110056,4709.3,4709.2,3.558]
[1755102269080,6.673256,4709.3,4709.2,3.558]
[1755102269289,3.55,4709.3,4709.2,3.558]
[1755102269504,0.55,4709.3,4709.2,3.558]
[1755102271422,3.02653758,4710.3,4709.2,3.558]
[1755102271423,0.02653758,4710.3,4709.2,4.0262]
[1755102271610,0.02653758,4710.3,4709.2,3.558]
[1755102271919,0.02653758,4710.3,4709.3,0.4682]
[1755102272092,0.02,4710.4,4709.3,0.4682]
[1755102272293,0.02653758,4710.3,4709.3,0.4682]
[1755102273023,0.02653758,4710.3,4709.4,3.544]
[1755102276001,0.02653758,4710.3,4709.5,0.4682]
[1755102276196,0.04653702,4710.4,4709.5,0.4682]
[1755102276424,0.04653702,4710.4,4709.6,3.534]
[1755102276696,0.55,4710.3,4709.6,3.534]
[1755102276913,0.02653815,4710.2,4709.6,3.534]
[1755102277312,0.02653815,4710.2,4709.9,0.1064]
[1755102277507,0.02653815,4710.2,4710.0,0.4682]
[1755102277726,0.02653815,4710.2,4709.9,0.1064]
[1755102277929,0.02653815,4710.2,4710.0,3.534]
[1755102278434,3.6564,4710.1,4709.0,0.1064]
[1755102278637,0.55,4709.6,4709.1,3.531]
[1755102278818,0.57654153,4709.6,4709.1,3.531]
[1755102279005,0.57654153,4709.6,4709.2,3.535]
[1755102279637,0.55,4709.4,4708.6,0.001]
[1755102279807,0.02654322,4709.3,4709.2,5.09]
[1755102280154,0.57654265,4709.4,4709.2,8.623]
[1755102280803,0.6564,4709.3,4709.2,8.623]
[1755102281021,6.4579,4709.3,4709.2,8.623]
[1755102281214,0.1064,4709.3,4708.8,5.09]
[1755102281416,0.02853758,4710.3,4709.2,0.1064]
[1755102281604,0.02853758,4710.3,4709.3,0.4682]
[1755102281804,0.02853758,4710.3,4709.8,0.1064]
[1755102282005,0.002,4710.6,4710.2,0.1064]
[1755102282230,0.002,4710.6,4709.9,1.7157]
[1755102282231,0.002,4710.6,4710.5,0.1064]
[1755102282407,28.8,4710.9,4710.5,3.6524]
[1755102282602,28.325,4710.9,4710.8,0.1064]
[1755102282840,28.325,4710.9,4710.8,1.3319]
[1755102282841,27.7927,4710.9,4710.8,1.3319]
[1755102283500,27.7927,4710.9,4710.8,0.1064]
[1755102283917,30.7927,4710.9,4710.8,0.1064]
[1755102284109,31.7812,4710.9,4710.8,3.543]
[1755102285536,3.55,4710.8,4710.3,0.1064]
[1755102285852,0.02653533,4710.7,4710.4,3.543]
[1755102286015,3.55,4710.8,4710.4,3.543]
[1755102286217,3.0,4710.8,4710.4,3.543]
[1755102286446,27.7927,4710.9,4710.4,3.543]
[1755102286740,27.7927,4710.9,4710.8,0.1064]
[1755102287311,27.7927,4710.9,4710.8,1.3319]
[1755102287510,27.7927,4710.9,4710.8,0.1064]
[1755102288009,27.7927,4710.9,4710.8,1.3319]
[1755102291142,28.7812,4710.9,4710.8,5.089]
[1755102291346,34.1442,4710.9,4710.8,8.617]
[1755102293033,34.1442,4710.9,4710.8,8.633]
[1755102293339,3.55,4710.8,4710.5,5.088]
[1755102293541,3.9885,4710.8,4710.6,8.632]
[1755102293754,5.93953477,4710.8,4710.7,5.088]
[1755102294058,3.55,4710.8,4710.7,5.088]
[1755102295218,6.3515,4710.8,4710.7,5.088]
[1755102295923,3.55,4710.8,4710.7,5.088]
[1755102296618,6.3515,4710.8,4710.7,5.088]
[1755102296945,6.3515,4710.8,4710.7,8.627]
[1755102297461,3.55,4710.8,4710.7,8.627]
[1755102298222,3.9885,4710.8,4710.7,8.627]
[1755102298567,6.3515,4710.8,4710.7,8.627]
[1755102299114,3.55,4710.8,4710.7,8.627]
[1755102300626,6.50993477,4710.8,4710.7,5.088]
[1755102300816,6.4834,4710.8,4710.0,5.089]
[1755102301032,0.6564,4710.2,4710.1,3.527]
[1755102301231,6.5898,4710.2,4710.1,3.527]
[1755102301631,6.5898,4710.2,4710.0,5.089]
[1755102301832,6.50993871,4710.1,4710.0,5.089]
[1755102302053,6.4834,4710.1,4710.0,8.614]
[1755102304562,30.7927,4710.1,4710.0,8.614]
[1755102304921,27.7927,4710.1,4710.0,8.614]
[1755102305230,27.7927,4710.1,4710.0,8.91312485]
[1755102305865,27.7927,4710.1,4710.0,28.33130522]
[1755102306066,27.7927,4710.1,4710.0,10.13862485]
[1755102306561,27.7927,4710.1,4710.0,10.13562485]
[1755102309175,27.7927,4710.1,4710.0,10.02922485]
[1755102310071,27.7927,4710.1,4710.0,10.77021877]
[1755102310271,27.7927,4710.1,4710.0,10.02922485]
[1755102310775,27.7927,4710.1,4710.0,6.50722485]
[1755102310974,27.7927,4710.1,4710.0,6.02148]
[1755102311128,27.7927,4710.1,4710.0,8.80372485]
[1755102311329,27.7927,4710.1,4710.0,26.99640522]
[1755102311573,27.7927,4710.1,4710.0,28.96166037]
[1755102311875,0.002,4710.9,4710.0,28.02918037]
[1755102312035,0.002,4710.9,4710.5,0.73988166]
[1755102312372,0.002,4710.9,4710.6,3.71471818]
[1755102312546,0.002,4710.9,4710.7,3.71471818]
[1755102312743,0.002,4710.9,4710.8,3.71471818]
[1755102313639,0.002,4710.9,4710.8,4.94021818]
[1755102314482,0.002,4710.9,4710.8,4.94027819]
[1755102314844,0.002,4710.9,4710.6,1.10982249]
[1755102315077,0.002,4710.9,4710.7,4.45383422]
[1755102315248,0.002,4710.9,4710.8,0.19276824]
[1755102315438,0.002,4710.9,4710.8,3.71376824]
[1755102315836,0.002,4710.9,4710.8,4.93926824]
[1755102316062,0.002,4710.9,4710.8,3.71376824]
[1755102316580,0.002,4710.9,4710.8,0.19276824]
[1755102316786,0.002,4710.9,4710.8,3.71376824]
[1755102317143,0.002,4710.9,4710.8,0.19276824]
[1755102317337,0.002,4710.9,4710.8,3.71376824]
[1755102317941,0.002,4710.9,4710.8,3.71374284]
[1755102319350,0.002,4710.9,4710.8,3.82014284]
[1755102320961,0.002,4710.9,4710.8,4.8529]
[1755102321194,0.002,4710.9,4710.8,5.04560587]
[1755102321544,0.002,4710.9,4710.8,5.04558277]
[1755102322383,0.002,4710.9,4710.8,5.67924875]
[1755102322546,0.002,4710.9,4710.8,5.04558277]
[1755102322746,0.002,4710.9,4710.8,28.84426878]
[1755102322941,0.002,4710.9,4710.8,25.31043411]
[1755102323360,0.002,4710.9,4710.8,25.11775134]
[1755102323682,0.002,4710.9,4710.8,24.09768876]
[1755102324185,0.002,4712.3,4710.8,28.97589326]
[1755102324386,0.002,4712.3,4711.7,23.79868601]
[1755102324546,0.002,4712.3,4712.2,5.087]
[1755102324753,0.002,4712.3,4712.2,8.79960275]
[1755102324946,27.7927,4713.5,4712.2,10.16800339]
[1755102325173,14.10730876,4713.5,4713.3,23.79868601]
[1755102325380,11.21240158,4713.5,4713.4,3.71260275]
[1755102325565,2.15100336,4713.5,4713.4,4.92330275]
[1755102326160,0.4588,4715.6,4713.4,4.92330275]
[1755102326483,0.4588,4715.6,4714.3,23.79868601]
[1755102326694,0.002,4715.8,4714.3,21.86921346]
[1755102326895,0.002,4715.8,4715.3,18.15661071]
[1755102327044,28.8,4717.3,4715.4,4.44851223]
[1755102327255,28.8,4717.3,4716.2,18.15661071]
[1755102327601,0.02,4718.4,4717.2,18.15661071]
[1755102327891,0.02,4718.4,4718.0,18.15661071]
[1755102328195,0.02,4721.4,4718.1,3.55]
[1755102328196,0.11047302,4721.1,4718.1,3.55]
[1755102328393,0.02,4721.4,4719.3,21.15661071]
[1755102328692,0.02,4721.4,4720.3,18.15661071]
[1755102328849,0.02,4721.4,4720.3,21.67561071]
[1755102329383,0.02,4721.4,4720.3,3.519]
[1755102330149,0.02,4721.4,4719.0,1.1607]
[1755102330355,0.4322,4720.9,4718.7,18.15661071]
[1755102330701,0.4322,4720.9,4719.5,18.15661071]
[1755102330850,0.4322,4720.9,4719.6,3.519]
[1755102331284,0.4322,4720.9,4717.6,3.55]
[1755102331285,0.4322,4720.3,4718.1,18.15661071]
[1755102331588,2.3572,4720.2,4718.2,8.602]
[1755102331792,0.4322,4720.1,4718.3,3.519]
[1755102331992,0.55,4719.9,4718.2,5.083]
[1755102332299,0.55,4719.6,4718.3,3.517]
[1755102332461,2.81588585,4719.5,4718.3,3.517]
[1755102332660,3.9822,4719.4,4718.4,3.517]
[1755102332954,3.55,4719.2,4718.2,5.083]
[1755102333155,18.15661071,4718.8,4717.8,2.643]
[1755102333360,0.55,4718.6,4718.3,5.083]
[1755102333590,0.55,4718.4,4718.3,5.083]
[1755102333982,3.3394,4718.4,4718.3,8.6]
[1755102334156,0.55,4718.3,4716.9,5.082]
[1755102334355,21.70661071,4718.1,4717.5,0.1056]
[1755102334593,0.55,4717.2,4716.1,0.02]
[1755102334897,3.55,4716.2,4712.8,0.2324]
[1755102335083,3.55,4715.5,4712.0,0.3588]
[1755102335398,3.55,4714.7,4711.1,0.02]
[1755102335562,28.82650888,4715.4,4713.2,3.519]
[1755102335563,3.55,4714.0,4713.2,3.519]
[1755102335759,0.55,4713.7,4713.2,3.519]
[1755102335958,0.026519,4713.6,4713.2,3.519]
[1755102336159,3.55,4713.5,4713.2,3.519]